[Event "Late-Titled-Tuesday-Blitz-August-29-2023"]
[Site "Chess.com"]
[Date "2023.08.29"]
[Round "11"]
[White "Mariia89"]
[Black "protectiago"]
[Result "1-0"]
[WhiteElo "1982"]
[BlackElo "2094"]
[TimeControl "180+1"]
[EndTime "16:02:48 PDT"]
[Termination "Mariia89 won on time"]

1. d4 {[%clk 0:03:00.9]} 1... Nf6 {[%clk 0:03:00]} 2. Nf3 {[%clk 0:03:00.6]}
2... g6 {[%clk 0:02:57.9]} 3. c4 {[%clk 0:02:59.4]} 3... Bg7 {[%clk 0:02:57.4]}
4. Nc3 {[%clk 0:02:59.8]} 4... d5 {[%clk 0:02:57.8]} 5. Bg5 {[%clk 0:02:58.8]}
5... Ne4 {[%clk 0:02:57.7]} 6. cxd5 {[%clk 0:02:58.9]} 6... Nxg5 {[%clk
0:02:57.4]} 7. Nxg5 {[%clk 0:02:59.3]} 7... e6 {[%clk 0:02:58.2]} 8. Nf3 {[%clk
0:02:59.9]} 8... exd5 {[%clk 0:02:58.3]} 9. e3 {[%clk 0:03:00.6]} 9... O-O
{[%clk 0:02:58.7]} 10. Be2 {[%clk 0:03:01.1]} 10... c6 {[%clk 0:02:57.4]} 11.
O-O {[%clk 0:03:01.3]} 11... Nd7 {[%clk 0:02:58.3]} 12. b4 {[%clk 0:03:01.1]}
12... a6 {[%clk 0:02:55.4]} 13. Na4 {[%clk 0:02:56.3]} 13... f5 {[%clk
0:02:54.3]} 14. Rc1 {[%clk 0:02:48.5]} 14... h6 {[%clk 0:02:48]} 15. Nc5 {[%clk
0:02:46.4]} 15... Nxc5 {[%clk 0:02:40.3]} 16. dxc5 {[%clk 0:02:42]} 16... Be6
{[%clk 0:02:31.8]} 17. Nd4 {[%clk 0:02:41.9]} 17... Bf7 {[%clk 0:02:31.8]} 18.
a4 {[%clk 0:02:40.9]} 18... Qg5 {[%clk 0:02:22.9]} 19. Bf3 {[%clk 0:02:26]}
19... Rfe8 {[%clk 0:02:20.9]} 20. b5 {[%clk 0:02:17.2]} 20... axb5 {[%clk
0:02:17.7]} 21. axb5 {[%clk 0:02:17.2]} 21... f4 {[%clk 0:02:13.7]} 22. bxc6
{[%clk 0:02:06]} 22... fxe3 {[%clk 0:01:59.9]} 23. cxb7 {[%clk 0:02:05.5]} 23...
Ra2 {[%clk 0:01:32.1]} 24. c6 {[%clk 0:01:45]} 24... exf2+ {[%clk 0:01:14.6]}
25. Kh1 {[%clk 0:01:43.5]} 25... Qf4 {[%clk 0:00:28.2]} 26. c7 {[%clk
0:01:08.9]} 26... Bxd4 {[%clk 0:00:26.2]} 27. g3 {[%clk 0:01:09.2]} 27... Re1
{[%clk 0:00:07.8]} 28. c8=Q+ {[%clk 0:01:01.8]} 28... Kg7 {[%clk 0:00:07.6]} 29.
gxf4 {[%clk 0:00:53.2]} 29... Rxd1 {[%clk 0:00:02.7]} 30. Rcxd1 {[%clk
0:00:50.4]} 1-0

[Event "Late-Titled-Tuesday-Blitz-August-29-2023"]
[Site "Chess.com"]
[Date "2023.08.29"]
[Round "11"]
[White "LeninGuerra"]
[Black "SchmakAttack"]
[Result "1-0"]
[WhiteElo "2587"]
[BlackElo "2766"]
[TimeControl "180+1"]
[EndTime "16:02:57 PDT"]
[Termination "LeninGuerra won by resignation"]

1. e4 {[%clk 0:03:00.9]} 1... e5 {[%clk 0:02:57.7]} 2. Nf3 {[%clk 0:03:00.3]}
2... Nc6 {[%clk 0:02:57.3]} 3. Bb5 {[%clk 0:02:59.5]} 3... a6 {[%clk 0:02:53.9]}
4. Ba4 {[%clk 0:02:59.3]} 4... Nf6 {[%clk 0:02:52.7]} 5. Qe2 {[%clk 0:02:59.1]}
5... b5 {[%clk 0:02:49.7]} 6. Bb3 {[%clk 0:02:58.5]} 6... Bc5 {[%clk 0:02:49.5]}
7. O-O {[%clk 0:02:58.1]} 7... O-O {[%clk 0:02:47.2]} 8. Rd1 {[%clk 0:02:57]}
8... d5 {[%clk 0:02:35.8]} 9. d3 {[%clk 0:02:55.3]} 9... Bg4 {[%clk 0:01:56.6]}
10. c3 {[%clk 0:02:55]} 10... h6 {[%clk 0:01:29.4]} 11. h3 {[%clk 0:02:54.8]}
11... Be6 {[%clk 0:01:29.3]} 12. Nbd2 {[%clk 0:02:53.6]} 12... Re8 {[%clk
0:01:26.1]} 13. Nf1 {[%clk 0:02:53.1]} 13... Bf8 {[%clk 0:01:18.8]} 14. g4
{[%clk 0:02:40.7]} 14... Na5 {[%clk 0:00:57.1]} 15. Bc2 {[%clk 0:02:39.4]} 15...
c5 {[%clk 0:00:54.8]} 16. Ng3 {[%clk 0:02:38.8]} 16... Nc6 {[%clk 0:00:52.2]}
17. Kh2 {[%clk 0:02:10.3]} 17... Qc7 {[%clk 0:00:50.9]} 18. Nh4 {[%clk
0:02:08.1]} 18... c4 {[%clk 0:00:36.5]} 19. dxc4 {[%clk 0:02:05.4]} 19... dxc4
{[%clk 0:00:32.3]} 20. Nhf5 {[%clk 0:02:00.8]} 20... Nh7 {[%clk 0:00:32.2]} 21.
h4 {[%clk 0:01:42.5]} 21... Rad8 {[%clk 0:00:31.3]} 22. Be3 {[%clk 0:01:40.3]}
22... Ne7 {[%clk 0:00:26.5]} 23. g5 {[%clk 0:01:31.2]} 23... hxg5 {[%clk
0:00:25.3]} 24. hxg5 {[%clk 0:01:32.1]} 24... Ng6 {[%clk 0:00:24.2]} 25. Qg4
{[%clk 0:01:19.4]} 25... Nf4 {[%clk 0:00:23.1]} 26. Qh4 {[%clk 0:01:11.4]} 26...
g6 {[%clk 0:00:16.2]} 27. Nh6+ {[%clk 0:01:09.2]} 27... Kg7 {[%clk 0:00:10.1]}
28. Rh1 {[%clk 0:01:05.6]} 28... Be7 {[%clk 0:00:09.3]} 29. Kg1 {[%clk
0:00:59.9]} 29... Rh8 {[%clk 0:00:09]} 30. Nhf5+ {[%clk 0:00:38.4]} 30... gxf5
{[%clk 0:00:09.5]} 31. Qh6+ {[%clk 0:00:38.8]} 31... Kg8 {[%clk 0:00:09.9]} 32.
Bxf4 {[%clk 0:00:39]} 32... Bf8 {[%clk 0:00:04.4]} 33. Qh5 {[%clk 0:00:36.1]}
33... exf4 {[%clk 0:00:04.7]} 34. Nxf5 {[%clk 0:00:33.1]} 34... Bxf5 {[%clk
0:00:02.6]} 35. exf5 {[%clk 0:00:34]} 35... Qe7 {[%clk 0:00:03.1]} 36. f6 {[%clk
0:00:34.2]} 36... Qe5 {[%clk 0:00:02.1]} 37. Bxh7+ {[%clk 0:00:33.3]} 1-0

[Event "Late-Titled-Tuesday-Blitz-August-29-2023"]
[Site "Chess.com"]
[Date "2023.08.29"]
[Round "11"]
[White "artin10862"]
[Black "Beca95"]
[Result "0-1"]
[WhiteElo "2885"]
[BlackElo "2984"]
[TimeControl "180+1"]
[EndTime "16:02:58 PDT"]
[Termination "Beca95 won on time"]

1. Nf3 {[%clk 0:02:50.5]} 1... Nf6 {[%clk 0:02:59.4]} 2. c4 {[%clk 0:02:48.3]}
2... c5 {[%clk 0:02:58.6]} 3. Nc3 {[%clk 0:02:44]} 3... Nc6 {[%clk 0:02:58.5]}
4. d4 {[%clk 0:02:26.2]} 4... cxd4 {[%clk 0:02:59.4]} 5. Nxd4 {[%clk 0:02:26.8]}
5... e6 {[%clk 0:02:59]} 6. g3 {[%clk 0:02:25.9]} 6... Qb6 {[%clk 0:02:58.1]} 7.
Nb3 {[%clk 0:02:13.8]} 7... Ne5 {[%clk 0:02:56.9]} 8. Bg2 {[%clk 0:01:47.7]}
8... Nxc4 {[%clk 0:02:43.8]} 9. O-O {[%clk 0:01:47.2]} 9... Bb4 {[%clk
0:02:42.3]} 10. e4 {[%clk 0:01:36.3]} 10... Bxc3 {[%clk 0:02:37.6]} 11. bxc3
{[%clk 0:01:36]} 11... O-O {[%clk 0:02:37.7]} 12. Bg5 {[%clk 0:01:32.9]} 12...
e5 {[%clk 0:02:22.4]} 13. Qe2 {[%clk 0:01:18.3]} 13... Qc6 {[%clk 0:02:07.7]}
14. Bxf6 {[%clk 0:01:01.6]} 14... gxf6 {[%clk 0:02:08.6]} 15. f4 {[%clk
0:00:55.3]} 15... d6 {[%clk 0:02:01.1]} 16. Kh1 {[%clk 0:00:47.2]} 16... Kg7
{[%clk 0:01:40.2]} 17. Rf2 {[%clk 0:00:34.1]} 17... h5 {[%clk 0:01:38.5]} 18.
Qxh5 {[%clk 0:00:27]} 18... Rh8 {[%clk 0:01:37.1]} 19. Qe2 {[%clk 0:00:27]}
19... Rh6 {[%clk 0:01:33.3]} 20. Raf1 {[%clk 0:00:19]} 20... b5 {[%clk
0:01:29.9]} 21. fxe5 {[%clk 0:00:11.8]} 21... dxe5 {[%clk 0:01:19.8]} 22. Nd4
{[%clk 0:00:12.2]} 22... Qb6 {[%clk 0:01:16.4]} 23. Nf5+ {[%clk 0:00:07.4]}
23... Bxf5 {[%clk 0:01:16.2]} 24. exf5 {[%clk 0:00:07.3]} 24... Rah8 {[%clk
0:01:13.9]} 25. Qg4+ {[%clk 0:00:05.2]} 25... Kh7 {[%clk 0:01:13.7]} 26. Qe4
{[%clk 0:00:02.5]} 26... Rg8 {[%clk 0:01:12.7]} 27. Kg1 {[%clk 0:00:02.6]} 27...
Nd2 {[%clk 0:01:09.8]} 28. Qe2 {[%clk 0:00:01.7]} 28... Nxf1 {[%clk 0:01:09]}
29. Bxf1 {[%clk 0:00:02.2]} 29... a6 {[%clk 0:01:06.6]} 30. Bg2 {[%clk
0:00:02.7]} 30... Qc5 {[%clk 0:01:06.4]} 31. Be4 {[%clk 0:00:02.8]} 31... Qxc3
{[%clk 0:01:05.2]} 32. Rf3 {[%clk 0:00:02.9]} 32... Qc5+ {[%clk 0:01:02.2]} 33.
Kg2 {[%clk 0:00:03.3]} 33... Rd8 {[%clk 0:01:02.3]} 34. Re3 {[%clk 0:00:02.7]}
34... Kh8 {[%clk 0:01:00.4]} 35. h4 {[%clk 0:00:02.7]} 35... Rh7 {[%clk
0:01:00.2]} 36. Kh3 {[%clk 0:00:03.2]} 36... Rd4 {[%clk 0:00:56.3]} 37. Rd3
{[%clk 0:00:02.4]} 37... Qc4 {[%clk 0:00:51.7]} 38. Qe3 {[%clk 0:00:01.7]} 38...
Rxe4 {[%clk 0:00:48.2]} 0-1

[Event "Late-Titled-Tuesday-Blitz-August-29-2023"]
[Site "Chess.com"]
[Date "2023.08.29"]
[Round "11"]
[White "GMMikhailKazakov"]
[Black "powermove"]
[Result "1-0"]
[WhiteElo "2344"]
[BlackElo "2097"]
[TimeControl "180+1"]
[EndTime "16:03:01 PDT"]
[Termination "GMMikhailKazakov won on time"]

1. d4 {[%clk 0:02:53.2]} 1... d5 {[%clk 0:02:59.3]} 2. c4 {[%clk 0:02:50]} 2...
e6 {[%clk 0:02:58.7]} 3. Nc3 {[%clk 0:02:48.3]} 3... Nf6 {[%clk 0:02:58]} 4. Nf3
{[%clk 0:02:43.6]} 4... Be7 {[%clk 0:02:57.5]} 5. Bg5 {[%clk 0:02:41.4]} 5...
O-O {[%clk 0:02:55.9]} 6. e3 {[%clk 0:02:40.8]} 6... h6 {[%clk 0:02:56.2]} 7.
Bh4 {[%clk 0:02:36]} 7... Ne4 {[%clk 0:02:55.9]} 8. Bg3 {[%clk 0:02:28.9]} 8...
c5 {[%clk 0:02:31.8]} 9. Bd3 {[%clk 0:02:18.2]} 9... Nxc3 {[%clk 0:02:17.9]} 10.
bxc3 {[%clk 0:02:16.2]} 10... cxd4 {[%clk 0:02:12.7]} 11. cxd4 {[%clk 0:02:14]}
11... dxc4 {[%clk 0:01:59.6]} 12. Bxc4 {[%clk 0:02:13.2]} 12... Qa5+ {[%clk
0:01:58.1]} 13. Kf1 {[%clk 0:02:07.2]} 13... Nc6 {[%clk 0:01:45]} 14. h3 {[%clk
0:02:00]} 14... Rd8 {[%clk 0:01:38.6]} 15. Qe2 {[%clk 0:01:58.4]} 15... a6
{[%clk 0:01:33.5]} 16. Kg1 {[%clk 0:01:55.7]} 16... b5 {[%clk 0:01:31.7]} 17.
Bb3 {[%clk 0:01:53.6]} 17... Bb7 {[%clk 0:01:29.3]} 18. Kh2 {[%clk 0:01:52.9]}
18... Bd6 {[%clk 0:01:26.4]} 19. Bxd6 {[%clk 0:01:45.9]} 19... Rxd6 {[%clk
0:01:25.8]} 20. Rac1 {[%clk 0:01:46.6]} 20... Rad8 {[%clk 0:01:23.1]} 21. Rc5
{[%clk 0:01:43.4]} 21... Ne7 {[%clk 0:01:10.7]} 22. Rhc1 {[%clk 0:01:39.3]}
22... Bd5 {[%clk 0:01:07.1]} 23. Ne5 {[%clk 0:01:31.6]} 23... Bxb3 {[%clk
0:00:58.3]} 24. axb3 {[%clk 0:01:32.3]} 24... Nd5 {[%clk 0:00:48.3]} 25. Nc6
{[%clk 0:01:20.2]} 25... Qb6 {[%clk 0:00:19.3]} 26. Nxd8 {[%clk 0:01:15.9]}
26... Rxd8 {[%clk 0:00:20.2]} 27. Qf3 {[%clk 0:01:14.3]} 27... Qd6+ {[%clk
0:00:18.9]} 28. Qg3 {[%clk 0:01:12.3]} 28... Qxg3+ {[%clk 0:00:16.7]} 29. Kxg3
{[%clk 0:01:12]} 29... g6 {[%clk 0:00:16.1]} 30. Rc8 {[%clk 0:01:11.2]} 30...
Rxc8 {[%clk 0:00:14.9]} 31. Rxc8+ {[%clk 0:01:10.7]} 31... Kg7 {[%clk
0:00:15.8]} 32. e4 {[%clk 0:01:05.2]} 32... Nf6 {[%clk 0:00:15.2]} 33. f3 {[%clk
0:01:00.7]} 33... Nh5+ {[%clk 0:00:08.3]} 34. Kf2 {[%clk 0:00:59.9]} 34... Nf4
{[%clk 0:00:07.6]} 35. Ra8 {[%clk 0:00:56.2]} 35... Nd3+ {[%clk 0:00:07.1]} 36.
Ke3 {[%clk 0:00:55.6]} 36... Nb4 {[%clk 0:00:07.8]} 37. Kd2 {[%clk 0:00:52.5]}
37... Nc6 {[%clk 0:00:04.7]} 38. d5 {[%clk 0:00:48.9]} 38... exd5 {[%clk
0:00:02.6]} 39. exd5 {[%clk 0:00:49.8]} 39... Nb4 {[%clk 0:00:01.2]} 40. d6
{[%clk 0:00:48.8]} 1-0

[Event "Late-Titled-Tuesday-Blitz-August-29-2023"]
[Site "Chess.com"]
[Date "2023.08.29"]
[Round "11"]
[White "BillieKimbah"]
[Black "vi_pranav"]
[Result "0-1"]
[WhiteElo "3042"]
[BlackElo "2970"]
[TimeControl "180+1"]
[EndTime "16:03:03 PDT"]
[Termination "vi_pranav won on time"]

1. d4 {[%clk 0:03:00.9]} 1... Nf6 {[%clk 0:02:59.9]} 2. Nf3 {[%clk 0:03:01.5]}
2... e6 {[%clk 0:03:00.2]} 3. Bg5 {[%clk 0:03:01.4]} 3... Be7 {[%clk 0:02:58.4]}
4. Nbd2 {[%clk 0:03:00.4]} 4... d5 {[%clk 0:02:57.3]} 5. e3 {[%clk 0:03:00.4]}
5... b6 {[%clk 0:02:55.4]} 6. c3 {[%clk 0:02:59.7]} 6... Bb7 {[%clk 0:02:55.8]}
7. Ne5 {[%clk 0:02:58.1]} 7... Nbd7 {[%clk 0:02:56]} 8. Bb5 {[%clk 0:02:57]}
8... O-O {[%clk 0:02:55.3]} 9. Nc6 {[%clk 0:02:54.7]} 9... Qe8 {[%clk
0:02:55.7]} 10. Nxe7+ {[%clk 0:02:52.8]} 10... Qxe7 {[%clk 0:02:56.6]} 11. Bxd7
{[%clk 0:02:50.1]} 11... Qxd7 {[%clk 0:02:56.1]} 12. Bxf6 {[%clk 0:02:49.9]}
12... gxf6 {[%clk 0:02:57]} 13. Qg4+ {[%clk 0:02:47.7]} 13... Kh8 {[%clk
0:02:57]} 14. Qh4 {[%clk 0:02:48.2]} 14... Qd8 {[%clk 0:02:57]} 15. O-O {[%clk
0:02:39.7]} 15... Rg8 {[%clk 0:02:56.8]} 16. Qf4 {[%clk 0:02:31.1]} 16... Rg6
{[%clk 0:02:52.9]} 17. f3 {[%clk 0:02:28.9]} 17... Qe7 {[%clk 0:02:44.7]} 18.
Rf2 {[%clk 0:02:28.2]} 18... Rag8 {[%clk 0:02:44]} 19. Re1 {[%clk 0:02:23.1]}
19... e5 {[%clk 0:02:21.4]} 20. Qh4 {[%clk 0:02:22]} 20... Qf8 {[%clk
0:02:13.4]} 21. dxe5 {[%clk 0:01:53]} 21... fxe5 {[%clk 0:02:14.3]} 22. Qa4
{[%clk 0:01:43.3]} 22... a5 {[%clk 0:02:00.5]} 23. Nf1 {[%clk 0:01:41.2]} 23...
f5 {[%clk 0:01:40.4]} 24. Ng3 {[%clk 0:01:32.6]} 24... Qg7 {[%clk 0:01:11.3]}
25. Qc2 {[%clk 0:01:30]} 25... Bc8 {[%clk 0:01:09.2]} 26. a3 {[%clk 0:00:58.7]}
26... c5 {[%clk 0:01:03.2]} 27. b4 {[%clk 0:00:56.9]} 27... f4 {[%clk
0:00:51.5]} 28. exf4 {[%clk 0:00:54.8]} 28... exf4 {[%clk 0:00:52.4]} 29. Nf1
{[%clk 0:00:45.1]} 29... axb4 {[%clk 0:00:34.8]} 30. axb4 {[%clk 0:00:46]} 30...
cxb4 {[%clk 0:00:35.4]} 31. cxb4 {[%clk 0:00:46.6]} 31... Qd4 {[%clk 0:00:33.3]}
32. Kh1 {[%clk 0:00:40.6]} 32... Bf5 {[%clk 0:00:30]} 33. Qd2 {[%clk 0:00:37.1]}
33... Qxd2 {[%clk 0:00:26.6]} 0-1

[Event "Late-Titled-Tuesday-Blitz-August-29-2023"]
[Site "Chess.com"]
[Date "2023.08.29"]
[Round "11"]
[White "egnfanclub"]
[Black "rikchessmx"]
[Result "1/2-1/2"]
[WhiteElo "2314"]
[BlackElo "2422"]
[TimeControl "180+1"]
[EndTime "16:03:03 PDT"]
[Termination "Game drawn by repetition"]

1. e4 {[%clk 0:03:00.9]} 1... e5 {[%clk 0:02:59]} 2. Nf3 {[%clk 0:03:00.3]} 2...
Nc6 {[%clk 0:02:59.9]} 3. d4 {[%clk 0:03:00.3]} 3... exd4 {[%clk 0:03:00.8]} 4.
Bc4 {[%clk 0:03:00.3]} 4... Qf6 {[%clk 0:02:55.7]} 5. O-O {[%clk 0:02:46.1]}
5... d6 {[%clk 0:02:55.4]} 6. c3 {[%clk 0:02:44.1]} 6... dxc3 {[%clk 0:02:53.9]}
7. Nxc3 {[%clk 0:02:45]} 7... Be6 {[%clk 0:02:52.9]} 8. Nd5 {[%clk 0:02:44.2]}
8... Qd8 {[%clk 0:02:52.3]} 9. Nd4 {[%clk 0:02:17.8]} 9... Nxd4 {[%clk
0:02:51.5]} 10. Qxd4 {[%clk 0:02:18.7]} 10... c6 {[%clk 0:02:45.7]} 11. Ne3
{[%clk 0:02:10.4]} 11... Bxc4 {[%clk 0:02:42.4]} 12. Nxc4 {[%clk 0:02:09.8]}
12... Be7 {[%clk 0:02:41.4]} 13. Qxg7 {[%clk 0:02:06.4]} 13... Bf6 {[%clk
0:02:41.2]} 14. Qg3 {[%clk 0:02:05]} 14... d5 {[%clk 0:02:37.6]} 15. Nd6+ {[%clk
0:01:57.6]} 15... Kf8 {[%clk 0:02:36]} 16. e5 {[%clk 0:01:48]} 16... Bg7 {[%clk
0:02:31.8]} 17. Bg5 {[%clk 0:01:44.5]} 17... f6 {[%clk 0:02:26.9]} 18. Qf4
{[%clk 0:01:17.7]} 18... h6 {[%clk 0:02:20]} 19. Bh4 {[%clk 0:01:17.2]} 19... h5
{[%clk 0:02:12.9]} 20. Rfe1 {[%clk 0:01:14.3]} 20... Bh6 {[%clk 0:02:08]} 21.
Qf3 {[%clk 0:01:10.9]} 21... Rh7 {[%clk 0:01:48.1]} 22. Qxh5 {[%clk 0:01:04.4]}
22... Qd7 {[%clk 0:01:39.9]} 23. Bg3 {[%clk 0:00:33.5]} 23... Bd2 {[%clk
0:01:38.2]} 24. e6 {[%clk 0:00:27.1]} 24... Qg7 {[%clk 0:01:26.9]} 25. Qf3
{[%clk 0:00:16.5]} 25... Bxe1 {[%clk 0:01:26.2]} 26. Rxe1 {[%clk 0:00:17.4]}
26... Ne7 {[%clk 0:01:24.5]} 27. Nf5 {[%clk 0:00:16.2]} 27... Nxf5 {[%clk
0:01:20.2]} 28. Qxf5 {[%clk 0:00:17.1]} 28... Qe7 {[%clk 0:01:19.5]} 29. Be5
{[%clk 0:00:11.3]} 29... Ke8 {[%clk 0:01:08.6]} 30. Bxf6 {[%clk 0:00:11.3]}
30... Qf8 {[%clk 0:01:08.3]} 31. e7 {[%clk 0:00:11.4]} 31... Qf7 {[%clk
0:01:08.2]} 32. Qe5 {[%clk 0:00:10.3]} 32... Rh6 {[%clk 0:01:06.6]} 33. Bg5
{[%clk 0:00:09.5]} 33... Rh5 {[%clk 0:01:05.2]} 34. g4 {[%clk 0:00:07.1]} 34...
Rh7 {[%clk 0:01:03.1]} 35. Qc7 {[%clk 0:00:06.8]} 35... Qg6 {[%clk 0:01:01.7]}
36. Qd8+ {[%clk 0:00:06.5]} 36... Kf7 {[%clk 0:01:02]} 37. Qd7 {[%clk
0:00:05.1]} 37... Re8 {[%clk 0:00:59.3]} 38. Re5 {[%clk 0:00:03.2]} 38... Rg7
{[%clk 0:00:58.2]} 39. Rf5+ {[%clk 0:00:03.5]} 39... Kg8 {[%clk 0:00:57.4]} 40.
Bf6 {[%clk 0:00:03.7]} 40... Qxg4+ {[%clk 0:00:56.4]} 41. Kf1 {[%clk 0:00:04.2]}
41... Qg2+ {[%clk 0:00:54.2]} 42. Ke2 {[%clk 0:00:04.6]} 42... Qe4+ {[%clk
0:00:52.7]} 43. Kf1 {[%clk 0:00:05.1]} 43... Rgxe7 {[%clk 0:00:52.1]} 44. Bxe7
{[%clk 0:00:04.7]} 44... Rxe7 {[%clk 0:00:52.5]} 45. Rg5+ {[%clk 0:00:05]} 45...
Kh7 {[%clk 0:00:51.8]} 46. Qd8 {[%clk 0:00:04.1]} 46... Qe2+ {[%clk 0:00:51.4]}
47. Kg2 {[%clk 0:00:04.2]} 47... Qe4+ {[%clk 0:00:51.1]} 48. Kf1 {[%clk
0:00:04.6]} 48... Qe1+ {[%clk 0:00:50.9]} 49. Kg2 {[%clk 0:00:05]} 49... Qe4+
{[%clk 0:00:50.9]} 50. Kf1 {[%clk 0:00:05.4]} 1/2-1/2

[Event "Late-Titled-Tuesday-Blitz-August-29-2023"]
[Site "Chess.com"]
[Date "2023.08.29"]
[Round "11"]
[White "Alphafischer2019"]
[Black "Fonsofan"]
[Result "0-1"]
[WhiteElo "2549"]
[BlackElo "2712"]
[TimeControl "180+1"]
[EndTime "16:03:05 PDT"]
[Termination "Fonsofan won by checkmate"]

1. d4 {[%clk 0:03:00.9]} 1... c6 {[%clk 0:02:56.4]} 2. Bf4 {[%clk 0:03:00]} 2...
d5 {[%clk 0:02:57.3]} 3. Nc3 {[%clk 0:02:59.9]} 3... Bf5 {[%clk 0:02:57.5]} 4.
f3 {[%clk 0:02:59.8]} 4... Nf6 {[%clk 0:02:57.5]} 5. g4 {[%clk 0:02:59.8]} 5...
Bg6 {[%clk 0:02:57.6]} 6. h4 {[%clk 0:03:00.4]} 6... h6 {[%clk 0:02:56.4]} 7. e3
{[%clk 0:02:59.1]} 7... Qb6 {[%clk 0:02:56.3]} 8. Na4 {[%clk 0:02:49.8]} 8...
Qa5+ {[%clk 0:02:46.4]} 9. c3 {[%clk 0:02:48.7]} 9... Nbd7 {[%clk 0:02:45.8]}
10. b4 {[%clk 0:02:42.9]} 10... Qd8 {[%clk 0:02:44]} 11. Bd3 {[%clk 0:02:34]}
11... a5 {[%clk 0:02:43.4]} 12. Bxg6 {[%clk 0:02:33.4]} 12... fxg6 {[%clk
0:02:40.1]} 13. a3 {[%clk 0:02:29.4]} 13... b5 {[%clk 0:02:38.4]} 14. Nb2 {[%clk
0:02:27.9]} 14... e6 {[%clk 0:02:34.9]} 15. Qd3 {[%clk 0:02:27]} 15... Kf7
{[%clk 0:02:32.2]} 16. Rd1 {[%clk 0:02:16]} 16... axb4 {[%clk 0:02:31.7]} 17.
axb4 {[%clk 0:02:16.9]} 17... Ra3 {[%clk 0:02:31.1]} 18. Qc2 {[%clk 0:02:11.7]}
18... Qa8 {[%clk 0:02:28.7]} 19. Ne2 {[%clk 0:02:11.4]} 19... Be7 {[%clk
0:02:27.4]} 20. h5 {[%clk 0:02:11.2]} 20... Nf8 {[%clk 0:02:17.5]} 21. Nd3
{[%clk 0:02:04.3]} 21... N6d7 {[%clk 0:02:14.1]} 22. Nec1 {[%clk 0:01:57.8]}
22... Bf6 {[%clk 0:02:04.5]} 23. Bd6 {[%clk 0:01:47.1]} 23... g5 {[%clk
0:02:03.9]} 24. O-O {[%clk 0:01:46.7]} 24... g6 {[%clk 0:02:00.8]} 25. Qh2
{[%clk 0:01:44]} 25... Kg7 {[%clk 0:01:56.9]} 26. Ne2 {[%clk 0:01:42.1]} 26...
Ra2 {[%clk 0:01:56]} 27. Rf2 {[%clk 0:01:40.5]} 27... Ra1 {[%clk 0:01:48]} 28.
Rxa1 {[%clk 0:01:36.6]} 28... Qxa1+ {[%clk 0:01:48.9]} 29. Kg2 {[%clk
0:01:34.7]} 29... gxh5 {[%clk 0:01:45.2]} 30. gxh5 {[%clk 0:01:27.9]} 30... Rg8
{[%clk 0:01:45.3]} 31. Ne5 {[%clk 0:01:18.4]} 31... Kh7 {[%clk 0:01:39.1]} 32.
Qg3 {[%clk 0:01:08.2]} 32... Nxe5 {[%clk 0:01:35.4]} 33. Bxe5 {[%clk 0:01:08.2]}
33... Nd7 {[%clk 0:01:36]} 34. Bxf6 {[%clk 0:01:07.8]} 34... Nxf6 {[%clk
0:01:36.9]} 35. Qe5 {[%clk 0:00:54.5]} 35... Nxh5 {[%clk 0:01:35.4]} 36. Qxe6
{[%clk 0:00:54.1]} 36... Rg6 {[%clk 0:01:35.8]} 37. Qf7+ {[%clk 0:00:48.5]}
37... Ng7 {[%clk 0:01:36.1]} 38. Ng3 {[%clk 0:00:38.4]} 38... Qa8 {[%clk
0:01:05]} 39. Nh5 {[%clk 0:00:36]} 39... Qd8 {[%clk 0:00:55.8]} 40. Ra2 {[%clk
0:00:35.7]} 40... g4 {[%clk 0:00:51.9]} 41. f4 {[%clk 0:00:26.4]} 41... Qh4
{[%clk 0:00:51.3]} 42. Nxg7 {[%clk 0:00:18.9]} 42... Qh3+ {[%clk 0:00:50.7]} 43.
Kg1 {[%clk 0:00:19.4]} 43... Qxe3+ {[%clk 0:00:50.6]} 44. Kg2 {[%clk 0:00:19.7]}
44... Qe4+ {[%clk 0:00:49.8]} 45. Kg1 {[%clk 0:00:17.5]} 45... Rxg7 {[%clk
0:00:45.3]} 46. Qf6 {[%clk 0:00:15.2]} 46... Qb1+ {[%clk 0:00:45.5]} 47. Kg2
{[%clk 0:00:14.7]} 47... Qxa2+ {[%clk 0:00:45.8]} 48. Kg3 {[%clk 0:00:15.4]}
48... Qb1 {[%clk 0:00:46.4]} 49. f5 {[%clk 0:00:15.8]} 49... Qd3+ {[%clk
0:00:46.1]} 50. Kh4 {[%clk 0:00:15.5]} 50... Qh3# {[%clk 0:00:46.2]} 0-1